Workbook

Sheet 設定
B2: 描画作成条件設定 | G2: =TODAY() -> 2022-05-14
B5: 描画数 | C5: キャンバス | E5: 色選択
C6: 縦(max600) | D6: 横(max1300)
B7: 5000 | C7: 600 | D7: 1300
E8: FALSE | F8: TRUE
B9: キャンバスの任意場所でクリックするとその場所から描画数分描画していきます。
C11: キー押下でキャンバスクリアーとなります。
C14: 印刷プレビュー
C17: キーで保存終了します。
C20: Events on
D24: Key Set

Sheet キャンバス
A1: 2 | B1: 100 | CX1: =B1+100 -> 200 | GT1: =CX1+100 -> 300 | KP1: =GT1+100 -> 400 | OL1: =KP1+100 -> 500 | SH1: =OL1+100 -> 600 | WD1: =SH1+100 -> 700 | ZZ1: =WD1+100 -> 800 | ADV1: =ZZ1+100 -> 900 | AHR1: =ADV1+100 -> 1000 | ALN1: =AHR1+100 -> 1100 | APJ1: =ALN1+100 -> 1200 | ATF1: =APJ1+100 -> 1300
A2: 100
WL13: .
C20: Events off
A102: =A2+100 -> 200
A202: =A102+100 -> 300
A302: =A202+100 -> 400
A402: =A302+100 -> 500
A502: =A402+100 -> 600

Sheet 色選択 (hidden)
C1: ThemeColor | D1: TintAndShade | E1: Color | G1: № | H1: ThemeColor | I1: TintAndShade | J1: Color
A2: 1 | C2: xlThemeColorDark1 | D2: -4.99893185216834E-02 | E2: 1 | G2: 11 | H2: =IFERROR(VLOOKUP($G$2,$A:$E,3,FALSE),"") -> xlThemeColorDark2 | I2: =IFERROR(VALUE(VLOOKUP($G$2,$A:$E,4,FALSE)),"") -> -0.09997863704 | J2: =IFERROR(VLOOKUP($G$2,$A:$E,5,FALSE),"") -> 3
A3: =A2+1 -> 2 | C3: xlThemeColorDark1 | D3: -0.149998474074526 | E3: 1
A4: =A3+1 -> 3 | C4: xlThemeColorDark1 | D4: -0.249977111117893 | E4: 1
A5: 4 | C5: xlThemeColorDark1 | D5: -0.349986266670736 | E5: 1 | G5: グラデーション
A6: 5 | C6: xlThemeColorDark1 | D6: -0.499984740745262 | E6: 1 | G6: 1 | H6: 45
A7: 6 | C7: xlThemeColorLight1 | D7: 0.499984740745262 | E7: 2 | G7: 2 | H7: 90
A8: 7 | C8: xlThemeColorLight1 | D8: 0.349986266670736 | E8: 2 | G8: 3 | H8: =H7+H6 -> 135
A9: 8 | C9: xlThemeColorLight1 | D9: 0.249977111117893 | E9: 2 | G9: 4 | H9: 225
A10: 9 | C10: xlThemeColorLight1 | D10: 0.149998474074526 | E10: 2 | G10: 5 | H10: 270
A11: 10 | C11: xlThemeColorLight1 | D11: 4.99893185216834E-02 | E11: 2 | G11: 5 | H11: =IFERROR(VLOOKUP(G11,G6:H10,2,FALSE),"") -> 270
A12: 11 | C12: xlThemeColorDark2 | D12: -9.99786370433668E-02 | E12: 3
A13: 12 | C13: xlThemeColorDark2 | D13: -0.249977111117893 | E13: 3
A14: 13 | C14: xlThemeColorDark2 | D14: -0.499984740745262 | E14: 3
A15: 14 | C15: xlThemeColorDark2 | D15: -0.749992370372631 | E15: 3
A16: 15 | C16: xlThemeColorDark2 | D16: -0.899990844447157 | E16: 3
A17: 16 | C17: xlThemeColorLight2 | D17: 0.799981688894314 | E17: 4
A18: 17 | C18: xlThemeColorLight2 | D18: 0.599993896298105 | E18: 4
A19: 18 | C19: xlThemeColorLight2 | D19: 0.399975585192419 | E19: 4
A20: 19 | C20: xlThemeColorLight2 | D20: -0.249977111117893 | E20: 4
A21: 20 | C21: xlThemeColorLight2 | D21: -0.499984740745262 | E21: 4
A22: 21 | C22: xlThemeColorAccent1 | D22: 0.799981688894314 | E22: 5
A23: 22 | C23: xlThemeColorAccent1 | D23: 0.599993896298105 | E23: 5
A24: 23 | C24: xlThemeColorAccent1 | D24: 0.399975585192419 | E24: 5
A25: 24 | C25: xlThemeColorAccent1 | D25: -0.249977111117893 | E25: 5
A26: 25 | C26: xlThemeColorAccent1 | D26: -0.499984740745262 | E26: 5
A27: 26 | C27: xlThemeColorAccent2 | D27: 0.799981688894314 | E27: 6
A28: 27 | C28: xlThemeColorAccent2 | D28: 0.599993896298105 | E28: 6
A29: 28 | C29: xlThemeColorAccent2 | D29: 0.399975585192419 | E29: 6
A30: 29 | C30: xlThemeColorAccent2 | D30: -0.249977111117893 | E30: 6
A31: 30 | C31: xlThemeColorAccent2 | D31: -0.499984740745262 | E31: 6
A32: 31 | C32: xlThemeColorAccent3 | D32: 0.799981688894314 | E32: 7
A33: 32 | C33: xlThemeColorAccent3 | D33: 0.599993896298105 | E33: 7
A34: 33 | C34: xlThemeColorAccent3 | D34: 0.399975585192419 | E34: 7
A35: 34 | C35: xlThemeColorAccent3 | D35: -0.249977111117893 | E35: 7
A36: 35 | C36: xlThemeColorAccent3 | D36: -0.499984740745262 | E36: 7
A37: 36 | C37: xlThemeColorAccent4 | D37: 0.799981688894314 | E37: 8
A38: 37 | C38: xlThemeColorAccent4 | D38: 0.599993896298105 | E38: 8
A39: 38 | C39: xlThemeColorAccent4 | D39: 0.399975585192419 | E39: 8
A40: 39 | C40: xlThemeColorAccent4 | D40: -0.249977111117893 | E40: 8
A41: 40 | C41: xlThemeColorAccent4 | D41: -0.499984740745262 | E41: 8
A42: 41 | C42: xlThemeColorAccent5 | D42: 0.799981688894314 | E42: 9
A43: 42 | C43: xlThemeColorAccent5 | D43: 0.599993896298105 | E43: 9
A44: 43 | C44: xlThemeColorAccent5 | D44: 0.399975585192419 | E44: 9
A45: 44 | C45: xlThemeColorAccent5 | D45: -0.249977111117893 | E45: 9
A46: 45 | C46: xlThemeColorAccent5 | D46: -0.499984740745262 | E46: 9
A47: 46 | C47: xlThemeColorAccent6 | D47: 0.799981688894314 | E47: 10
A48: 47 | C48: xlThemeColorAccent6 | D48: 0.599993896298105 | E48: 10
A49: 48 | C49: xlThemeColorAccent6 | D49: 0.399975585192419 | E49: 10
A50: 49 | C50: xlThemeColorAccent6 | D50: -0.249977111117893 | E50: 10
A51: 50 | C51: xlThemeColorAccent6 | D51: -0.499984740745262 | E51: 10
A52: 51 | C52: xlThemeColorDark1 | D52: 0 | E52: 1 | F52: ThemeColor№
A53: 52 | C53: xlThemeColorLight1 | D53: 0 | E53: 2
A54: 53 | C54: xlThemeColorDark2 | D54: 0 | E54: 3
A55: 54 | C55: xlThemeColorLight2 | D55: 0 | E55: 4
A56: 55 | C56: xlThemeColorAccent1 | D56: 0 | E56: 5
A57: 56 | C57: xlThemeColorAccent2 | D57: 0 | E57: 6
A58: 57 | C58: xlThemeColorAccent3 | D58: 0 | E58: 7
A59: 58 | C59: xlThemeColorAccent4 | D59: 0 | E59: 8
A60: 59 | C60: xlThemeColorAccent5 | D60: 0 | E60: 9
A61: 60 | C61: xlThemeColorAccent6 | D61: 0 | E61: 10
A62: 61 | D62: 0 | E62: 0
A63: 62 | D63: 0 | E63: 128
A64: 63 | D64: 0 | E64: 153
A65: 64 | D65: 0 | E65: 192
A66: 65 | D66: 0 | E66: 204
A67: 66 | D67: 0 | E67: 255
A68: =A67+1 -> 67 | D68: 0 | E68: 13056
A69: 68 | D69: 0 | E69: 13107
A70: 69 | D70: 0 | E70: 13158
A71: 70 | D71: 0 | E71: 13209
A72: 71 | D72: 0 | E72: 13260
A73: 72 | D73: 0 | E73: 13311
A74: 73 | D74: 0 | E74: 26112
A75: 74 | D75: 0 | E75: 26163
A76: 75 | D76: 0 | E76: 26265
A77: 76 | D77: 0 | E77: 26316
A78: 77 | D78: 0 | E78: 26367
A79: 78 | D79: 0 | E79: 32768
A80: 79 | D80: 0 | E80: 32896
A81: 80 | D81: 0 | E81: 39168
A82: 81 | D82: 0 | E82: 39270
A83: 82 | D83: 0 | E83: 39372
A84: 83 | D84: 0 | E84: 39423
A85: 84 | D85: 0 | E85: 49407
A86: 85 | D86: 0 | E86: 52224
A87: 86 | D87: 0 | E87: 52377
A88: 87 | D88: 0 | E88: 52428
A89: 88 | D89: 0 | E89: 52479
A90: 89 | D90: 0 | E90: 65280
A91: 90 | D91: 0 | E91: 65535
A92: 91 | D92: 0 | E92: 526344
A93: 92 | D93: 0 | E93: 1118481
A94: 93 | D94: 0 | E94: 1842204
A95: 94 | D95: 0 | E95: 2162853
A96: 95 | D96: 0 | E96: 2697513
A97: 96 | D97: 0 | E97: 3342438
A98: 97 | D98: 0 | E98: 3342489
A99: 98 | D99: 0 | E99: 3355443
A100: 99 | D100: 0 | E100: 3368550
A101: 100 | D101: 0 | E101: 3368601
A102: 101 | D102: 0 | E102: 3381555
A103: 102 | D103: 0 | E103: 3381759
A104: 103 | D104: 0 | E104: 3394611
A105: 104 | D105: 0 | E105: 3407718
A106: 105 | D106: 0 | E106: 3407769
A107: 106 | D107: 0 | E107: 3407820
A108: 107 | D108: 0 | E108: 5066061
A109: 108 | D109: 0 | E109: 5263615
A110: 109 | D110: 0 | E110: 5287936
A111: 110 | D111: 0 | E111: 5296274
A112: 111 | D112: 0 | E112: 6250335
A113: 112 | D113: 0 | E113: 6299648
A114: 113 | D114: 0 | E114: 6684672
A115: 114 | D115: 0 | E115: 6684774
A116: 115 | D116: 0 | E116: 6684876
A117: 116 | D117: 0 | E117: 6684927
A118: 117 | D118: 0 | E118: 6697728
A119: 118 | D119: 0 | E119: 6697881
A120: 119 | D120: 0 | E120: 6710784
A121: 120 | D121: 0 | E121: 6723891
A122: 121 | D122: 0 | E122: 6724095
A123: 122 | D123: 0 | E123: 6736896
A124: 123 | D124: 0 | E124: 6737151
A125: 124 | D125: 0 | E125: 6750054
A126: 125 | D126: 0 | E126: 6750105
A127: 126 | D127: 0 | E127: 6750156
A128: 127 | D128: 0 | E128: 6750207
A129: 128 | D129: 0 | E129: 7829367
A130: 129 | D130: 0 | E130: 8388736
A131: 130 | D131: 0 | E131: 8420607
A132: =A131+1 -> 131 | D132: 0 | E132: 8421376
A133: 132 | D133: 0 | E133: 8421504
A134: 133 | D134: 0 | E134: 9634006
A135: 134 | D135: 0 | E135: 9868950
A136: 135 | D136: 0 | E136: 10027008
A137: 136 | D137: 0 | E137: 10027161
A138: 137 | D138: 0 | E138: 10027212
A139: 138 | D139: 0 | E139: 10040064
A140: 139 | D140: 0 | E140: 10040115
A141: 140 | D141: 0 | E141: 10040268
A142: 141 | D142: 0 | E142: 10040319
A143: 142 | D143: 0 | E143: 10053120
A144: 143 | D144: 0 | E144: 10053171
A145: 144 | D145: 0 | E145: 10053222
A146: 145 | D146: 0 | E146: 10053375
A147: 146 | D147: 0 | E147: 10066176
A148: 147 | D148: 0 | E148: 10066431
A149: 148 | D149: 0 | E149: 10079232
A150: 149 | D150: 0 | E150: 10079487
A151: 150 | D151: 0 | E151: 10092288
A152: 151 | D152: 0 | E152: 10092390
A153: 152 | D153: 0 | E153: 10092441
A154: 153 | D154: 0 | E154: 10092492
A155: 154 | D155: 0 | E155: 10092543
A156: 155 | D156: 0 | E156: 10498160
A157: 156 | D157: 0 | E157: 11711154
A158: 157 | D158: 0 | E158: 12611584
A159: 158 | D159: 0 | E159: 12632256
A160: 159 | D160: 0 | E160: 13369344
A161: 160 | D161: 0 | E161: 13369446
A162: 161 | D162: 0 | E162: 13369497
A163: 162 | D163: 0 | E163: 13369548
A164: 163 | D164: 0 | E164: 13382400
A165: 164 | D165: 0 | E165: 13382451
A166: 165 | D166: 0 | E166: 13382655
A167: 166 | D167: 0 | E167: 13395456
A168: 167 | D168: 0 | E168: 13395507
A169: 168 | D169: 0 | E169: 13395711
A170: 169 | D170: 0 | E170: 13408512
A171: 170 | D171: 0 | E171: 13408767
A172: 171 | D172: 0 | E172: 13421619
A173: 172 | D173: 0 | E173: 13421823
A174: 173 | D174: 0 | E174: 13434624
A175: 174 | D175: 0 | E175: 13434726
A176: 175 | D176: 0 | E176: 13434777
A177: 176 | D177: 0 | E177: 13434828
A178: 177 | D178: 0 | E178: 13434879
A179: 178 | D179: 0 | E179: 14540253
A180: 179 | D180: 0 | E180: 15395562
A181: 180 | D181: 0 | E181: 15773696
A182: 181 | D182: 0 | E182: 16711680
A183: 182 | D183: 0 | E183: 16711782
A184: 183 | D184: 0 | E184: 16711833
A185: 184 | D185: 0 | E185: 16711884
A186: 185 | D186: 0 | E186: 16711935
A187: 186 | D187: 0 | E187: 16724787
A188: 187 | D188: 0 | E188: 16724889
A189: 188 | D189: 0 | E189: 16737792
A190: 189 | D190: 0 | E190: 16737843
A191: 190 | D191: 0 | E191: 16737894
A192: 191 | D192: 0 | E192: 16737945
A193: 192 | D193: 0 | E193: 16737996
A194: 193 | D194: 0 | E194: 16738047
A195: 194 | D195: 0 | E195: 16750848
A196: =A195+1 -> 195 | D196: 0 | E196: 16750899
A197: 196 | D197: 0 | E197: 16750950
A198: 197 | D198: 0 | E198: 16751001
A199: 198 | D199: 0 | E199: 16751052
A200: 199 | D200: 0 | E200: 16751103
... 11 more rows
